bitfinex/quotes_SOLUSD_20230105
["timestamp","ask_amount","ask_price","bid_price","bid_amount"]
[1672950120810,20.0,13.578,13.563,75.33]
[1672950122788,20.0,13.578,13.564,20.0]
[1672950123015,20.0,13.578,13.565,75.33]
[1672950123839,20.0,13.578,13.566,119.1884]
[1672950124066,268.41737149,13.578,13.567,55.32]
[1672950124378,323.68737149,13.578,13.566,55.32]
[1672950124710,20.0,13.576,13.562,55.34]
[1672950124893,20.0,13.574,13.56,55.35]
[1672950129625,268.41737149,13.574,13.56,55.35]
[1672950129823,20.0,13.574,13.56,55.35]
[1672950130463,20.0,13.574,13.56,96.02863424]
[1672950131204,20.0,13.574,13.56,55.35]
[1672950132994,20.0,13.575,13.561,20.0]
[1672950133196,20.0,13.575,13.562,55.34]
[1672950133519,20.0,13.575,13.563,20.0]
[1672950133746,20.0,13.575,13.564,55.33]
[1672950134053,20.0,13.575,13.565,20.0]
[1672950134254,20.0,13.575,13.566,55.32]
[1672950134783,20.0,13.573,13.56,55.35]
[1672950134985,55.3,13.572,13.559,165.6724]
[1672950135184,75.29,13.573,13.559,165.6724]
[1672950135395,22.41737149,13.571,13.559,165.6724]
[1672950135607,20.0,13.57,13.559,165.6724]
[1672950139599,20.0,13.571,13.559,165.6724]
[1672950140334,55.3,13.572,13.559,165.6724]
[1672950140670,22.41737149,13.572,13.559,165.6724]
[1672950140880,20.0,13.571,13.559,165.6724]
[1672950143278,20.0,13.572,13.559,165.6724]
[1672950144873,117.6148,13.574,13.559,165.6724]
[1672950145078,20.0,13.573,13.559,165.6724]
[1672950148324,22.41737149,13.572,13.559,165.6724]
[1672950148538,20.0,13.573,13.559,165.6724]
[1672950150023,117.6148,13.574,13.559,165.6724]
[1672950150226,55.27,13.578,13.56,76.79]
[1672950150546,20.0,13.578,13.561,55.34]
[1672950150864,42.41737149,13.577,13.561,55.34]
[1672950151071,301.28,13.576,13.56,55.35]
[1672950151260,20.0,13.575,13.56,55.35]
[1672950151468,20.0,13.574,13.56,55.35]
[1672950151904,42.41737149,13.574,13.56,55.35]
[1672950152547,268.41737149,13.574,13.56,55.35]
[1672950152958,323.70737149,13.574,13.56,55.35]
[1672950153162,268.41737149,13.574,13.56,55.35]
[1672950155077,42.41737149,13.574,13.56,55.35]
[1672950160433,268.41737149,13.574,13.56,55.35]
[1672950160751,20.0,13.572,13.56,55.35]
[1672950161144,20.0,13.57,13.56,55.35]
[1672950163695,20.0,13.568,13.559,110.3224]
[1672950164004,22.41737149,13.567,13.559,110.3224]
[1672950164404,20.0,13.566,13.559,110.3224]
[1672950166089,20.0,13.566,13.553,55.37]
[1672950166299,20.0,13.564,13.554,20.0]
[1672950166621,37.3572376,13.589,13.556,20.0]
[1672950166832,185.44,13.59,13.56,37.08]
[1672950167030,22.41737149,13.588,13.561,213.8597]
[1672950167241,20.0,13.586,13.561,277.16947571]
[1672950167454,20.0,13.584,13.561,361.21262882]
[1672950167664,221.2,13.582,13.562,84.04315311]
[1672950167888,221.2,13.579,13.563,75.33]
[1672950168085,20.0,13.578,13.563,55.33]
[1672950168294,20.0,13.578,13.564,20.0]
[1672950168517,20.0,13.578,13.565,55.33]
[1672950168709,20.0,13.578,13.566,20.0]
[1672950168924,20.0,13.578,13.567,55.32]
[1672950169557,20.0,13.578,13.566,20.0]
[1672950169790,20.0,13.578,13.564,20.0]
[1672950169973,20.0,13.575,13.562,55.34]
[1672950170182,20.0,13.573,13.562,55.34]
[1672950170405,20.0,13.573,13.56,55.35]
[1672950171863,20.0,13.576,13.561,20.0]
[1672950172078,20.0,13.576,13.562,55.34]
[1672950172300,20.0,13.579,13.562,55.34]
[1672950172515,117.6905,13.581,13.563,20.0]
[1672950172727,20.0,13.58,13.564,55.33]
[1672950172941,117.6905,13.581,13.565,20.0]
[1672950173129,117.6905,13.581,13.566,284.068]
[1672950173339,117.6905,13.581,13.567,20.0]
[1672950173561,20.0,13.583,13.569,20.0]
[1672950173769,20.0,13.583,13.57,55.31]
[1672950174186,20.0,13.584,13.569,20.0]
[1672950174393,20.0,13.584,13.571,20.0]
[1672950174608,20.0,13.586,13.572,75.3]
[1672950174821,20.0,13.586,13.572,189.8569]
[1672950175460,20.0,13.586,13.574,20.0]
[1672950175662,20.0,13.586,13.575,20.0]
[1672950176277,75.23,13.588,13.575,20.0]
[1672950176278,55.23,13.588,13.575,20.0]
[1672950176492,37.32,13.59,13.577,20.0]
[1672950176714,57.32,13.59,13.576,55.28]
[1672950177248,20.0,13.589,13.576,55.28]
[1672950179224,37.32,13.59,13.576,55.28]
[1672950179444,20.0,13.591,13.576,55.28]
[1672950179874,20.0,13.591,13.577,20.0]
[1672950180064,165.9659,13.593,13.579,20.0]
[1672950180276,55.21,13.593,13.579,20.0]
[1672950180486,20.0,13.596,13.58,55.26]
[1672950180697,20.0,13.595,13.58,55.26]
[1672950181558,20.0,13.595,13.581,20.0]
[1672950181768,20.0,13.595,13.582,55.26]
[1672950181962,20.0,13.595,13.583,20.0]
[1672950182175,20.0,13.596,13.585,20.0]
[1672950182379,75.16,13.605,13.586,75.24]
[1672950182805,20.0,13.604,13.586,75.24]
[1672950183013,20.0,13.602,13.586,75.24]
[1672950183232,20.0,13.602,13.588,20.0]
[1672950183437,20.0,13.602,13.589,55.23]
[1672950184189,20.0,13.602,13.589,20.0]
[1672950184379,20.0,13.602,13.59,55.22]
[1672950184712,20.0,13.602,13.587,112.2622]
[1672950184713,20.0,13.602,13.588,55.23]
[1672950186389,75.17,13.604,13.588,55.23]
[1672950187335,296.37,13.604,13.588,55.23]
[1672950187540,37.08,13.6,13.587,112.2622]
[1672950187746,75.17,13.604,13.589,20.0]
[1672950187958,75.17,13.604,13.59,55.22]
[1672950188157,75.17,13.604,13.589,20.0]
[1672950188491,75.17,13.604,13.588,75.23]
[1672950188894,75.17,13.604,13.588,55.23]
[1672950189527,37.08,13.6,13.587,167.5022]
[1672950189740,20.0,13.599,13.587,167.5022]
[1672950193513,20.0,13.599,13.587,55.24]
[1672950193730,221.2,13.597,13.58,112.9988]
[1672950194061,20.0,13.595,13.58,112.9988]
[1672950194263,75.21,13.594,13.58,112.9988]
[1672950194457,20.0,13.593,13.58,112.9988]
[1672950196987,20.0,13.591,13.58,112.9988]
[1672950200907,20.0,13.593,13.58,112.9988]
[1672950202068,185.32,13.6,13.581,20.0]
[1672950202280,20.0,13.599,13.582,20.0]
[1672950202604,20.0,13.599,13.584,20.0]
[1672950202809,20.0,13.599,13.585,75.24]
[1672950205236,145.5021,13.6,13.585,75.24]
[1672950205633,20.0,13.599,13.585,75.24]
[1672950206284,145.5021,13.6,13.585,75.24]
[1672950206493,108.4821,13.6,13.585,75.24]
[1672950206708,20.0,13.599,13.585,75.24]
[1672950207436,20.0,13.602,13.585,75.24]
[1672950207642,20.0,13.602,13.586,20.0]
[1672950207858,20.0,13.602,13.587,55.24]
[1672950208063,135.8412,13.604,13.588,20.0]
[1672950208387,135.8412,13.604,13.59,20.0]
[1672950208603,135.8412,13.604,13.591,55.22]
[1672950209215,135.8412,13.604,13.59,20.0]
[1672950209423,135.8412,13.604,13.591,55.22]
[1672950209754,135.8412,13.604,13.589,55.23]
[1672950210278,135.8412,13.604,13.588,55.23]
[1672950210465,20.0,13.603,13.588,55.23]
[1672950210675,20.0,13.603,13.566,20.0]
[1672950210676,20.0,13.607,13.59,36.92]
[1672950210986,20.0,13.607,13.591,75.22]
[1672950212382,20.0,13.607,13.592,20.0]
[1672950212694,20.0,13.607,13.593,55.21]
[1672950212893,20.0,13.607,13.594,20.0]
[1672950213214,20.0,13.607,13.595,55.2]
[1672950213404,37.1,13.61,13.596,20.0]
[1672950213621,276.31,13.617,13.597,55.2]
[1672950213832,20.0,13.614,13.598,20.0]
[1672950214154,20.0,13.614,13.599,55.19]
[1672950214370,20.0,13.614,13.592,55.22]
[1672950214689,20.0,13.614,13.594,20.0]
[1672950214920,20.0,13.614,13.595,55.2]
[1672950215426,55.13,13.613,13.592,55.22]
[1672950215622,20.0,13.612,13.593,20.0]
[1672950215835,20.0,13.612,13.594,55.21]
[1672950216773,20.0,13.612,13.596,20.0]
[1672950216989,20.0,13.612,13.597,55.2]
[1672950218043,20.0,13.612,13.596,55.2]
[1672950218363,20.0,13.612,13.597,20.0]
[1672950218557,20.0,13.612,13.598,55.19]
[1672950219196,20.0,13.613,13.598,55.19]
[1672950219408,226.1083,13.615,13.599,20.0]
[1672950219630,20.0,13.614,13.601,20.0]
[1672950219950,40.0,13.614,13.6,55.18]
[1672950220255,226.1083,13.615,13.6,55.18]
[1672950220256,226.1083,13.615,13.6,92.1]
[1672950220451,226.1083,13.615,13.602,20.0]
[1672950220667,226.1083,13.615,13.603,55.17]
[1672950220988,226.1083,13.615,13.604,40.0]
[1672950221206,226.1083,13.615,13.604,20.0]
[1672950222243,55.11,13.619,13.604,20.0]
[1672950222449,168.9856,13.619,13.604,20.0]
[1672950222664,20.0,13.618,13.604,20.0]
[1672950223515,20.0,13.618,13.604,75.17]
[1672950223724,20.0,13.618,13.605,20.0]
[1672950225722,55.11,13.617,13.605,20.0]
[1672950226042,55.11,13.617,13.602,55.18]
[1672950226043,75.11,13.618,13.603,20.0]
[1672950226565,75.11,13.618,13.602,20.0]
[1672950227804,99.36521974,13.617,13.601,55.18]
[1672950228015,79.36521974,13.614,13.601,55.18]
[1672950228225,20.0,13.613,13.601,55.18]
[1672950228456,79.36521974,13.612,13.601,55.18]
[1672950228663,79.36521974,13.61,13.601,55.18]
[1672950228876,20.0,13.609,13.601,55.18]
[1672950229085,79.36521974,13.608,13.601,55.18]
[1672950229274,20.0,13.607,13.602,20.0]
[1672950229488,79.36521974,13.606,13.596,55.2]
[1672950229697,79.36521974,13.604,13.595,55.2]
[1672950230114,79.36521974,13.606,13.595,55.2]
[1672950230341,79.36521974,13.604,13.595,55.2]
[1672950230551,79.36521974,13.606,13.595,55.2]
[1672950230751,79.36521974,13.604,13.595,55.2]
[1672950231181,79.36521974,13.606,13.595,55.2]
[1672950231399,79.36521974,13.604,13.595,55.2]
[1672950231797,20.0,13.605,13.595,55.2]
[1672950232009,79.36521974,13.604,13.595,55.2]
[1672950232748,20.0,13.605,13.595,55.2]
[1672950232956,79.36521974,13.604,13.595,55.2]
[1672950233166,79.36521974,13.604,13.596,20.0]
[1672950233371,20.0,13.605,13.597,55.2]
[1672950233586,20.0,13.607,13.597,55.2]
[1672950233803,20.0,13.605,13.596,20.0]
[1672950234012,47.42091944,13.604,13.596,20.0]
[1672950234224,47.42091944,13.604,13.593,75.21]
[1672950234432,47.42091944,13.606,13.594,20.0]
[1672950234647,47.42091944,13.606,13.595,75.2]
[1672950234967,20.0,13.607,13.595,75.2]
[1672950235185,115.266,13.608,13.595,75.2]
[1672950235496,20.0,13.607,13.596,20.0]
[1672950235686,20.0,13.607,13.594,20.0]
[1672950235896,115.266,13.608,13.595,55.2]
[1672950236118,20.0,13.607,13.595,55.2]
[1672950236333,20.0,13.605,13.593,55.21]
[1672950236754,42.83843286,13.604,13.593,55.21]
[1672950236965,20.0,13.605,13.593,55.21]
[1672950237281,43.0031673,13.604,13.592,55.22]
[1672950237601,20.0,13.607,13.593,40.0]
[1672950237784,20.0,13.607,13.595,20.0]
[1672950238541,115.266,13.608,13.595,40.0]
[1672950238756,115.266,13.608,13.596,55.2]
[1672950238966,115.266,13.608,13.595,20.0]
[1672950239178,20.0,13.607,13.595,20.0]
[1672950239366,20.0,13.607,13.594,55.21]
[1672950239575,20.0,13.607,13.595,20.0]
[1672950240213,115.266,13.608,13.595,20.0]
[1672950241168,20.0,13.607,13.595,20.0]
[1672950241385,20.0,13.607,13.593,20.0]
[1672950241572,20.0,13.607,13.594,55.21]
[1672950241781,20.0,13.607,13.595,20.0]
[1672950242728,75.15,13.607,13.595,20.0]
[1672950242945,20.0,13.605,13.594,20.0]
[1672950243589,46.2154818,13.604,13.592,20.0]
[1672950243899,20.0,13.603,13.592,20.0]
[1672950244305,20.0,13.603,13.588,16.747034]
[1672950244516,20.0,13.603,13.58,185.65]
[1672950244517,20.0,13.599,13.583,99.5109]
[1672950244735,138.68022682,13.598,13.58,8.3931]
[1672950244947,20.0,13.597,13.576,20.0]
[1672950245151,20.0,13.595,13.577,90.60097694]
[1672950245361,84.04065887,13.594,13.577,90.60097694]
[1672950245578,20.0,13.593,13.577,90.60097694]
[1672950245785,20.0,13.591,13.577,90.60097694]
[1672950245995,84.04065887,13.59,13.577,90.60097694]
[1672950246213,20.0,13.589,13.577,55.28]
[1672950246526,84.04065887,13.586,13.576,55.28]
[1672950246727,84.04065887,13.586,13.576,20.0]
[1672950246947,84.04065887,13.588,13.577,55.28]
[1672950247147,84.04065887,13.586,13.575,55.28]
[1672950247359,84.04065887,13.584,13.575,55.28]
[1672950248185,20.0,13.585,13.576,20.0]
[1672950248401,84.04065887,13.584,13.577,55.28]
[1672950248610,84.04065887,13.584,13.578,20.0]
[1672950249032,84.04065887,13.582,13.574,454.30809787]
[1672950250939,20.0,13.583,13.571,55.3]
[1672950251144,84.04065887,13.582,13.572,20.0]
[1672950251353,116.1309,13.594,13.573,90.61097694]
[1672950251354,20.0,13.592,13.573,90.61097694]
[1672950251565,84.04065887,13.591,13.574,20.0]
[1672950251776,84.04065887,13.589,13.576,20.0]
[1672950251989,84.04065887,13.589,13.577,75.28]
[1672950253048,20.0,13.59,13.577,75.28]
[1672950253240,84.04065887,13.589,13.577,113.37431027]
[1672950253664,20.0,13.588,13.577,113.37431027]
[1672950253879,20.0,13.586,13.577,113.37431027]
[1672950254090,20.0,13.588,13.577,113.37431027]
[1672950254294,43.21079998,13.587,13.577,113.37431027]
[1672950255041,20.0,13.588,13.577,113.37431027]
[1672950255250,43.26186276,13.587,13.577,113.37431027]
[1672950256205,20.0,13.588,13.577,113.37431027]
[1672950256604,42.02736928,13.587,13.577,113.37431027]
[1672950256814,20.0,13.588,13.577,113.37431027]
[1672950257337,20.0,13.59,13.577,113.37431027]
[1672950257784,20.0,13.59,13.577,58.09431027]
[1672950257966,20.0,13.59,13.578,55.27]
[1672950258291,20.0,13.59,13.579,20.0]
[1672950260196,42.23267208,13.589,13.579,20.0]
[1672950260389,42.50258621,13.587,13.579,20.0]
[1672950260808,20.0,13.59,13.579,20.0]
[1672950261661,20.0,13.588,13.575,55.28]
[1672950261852,49.14987152,13.587,13.574,16.747034]
[1672950262063,59.08700329,13.585,13.574,16.747034]
[1672950262495,59.08700329,13.583,13.574,16.747034]
[1672950262689,20.0,13.582,13.574,16.747034]
[1672950262900,20.0,13.582,13.572,55.3]
[1672950262901,20.0,13.582,13.571,55.3]
[1672950263127,59.09429937,13.579,13.571,72.047034]
[1672950263442,59.09429937,13.581,13.571,72.047034]
[1672950264705,59.09429937,13.581,13.572,20.0]
[1672950265023,59.09429937,13.581,13.573,55.29]
[1672950265341,59.09429937,13.581,13.574,20.0]
[1672950266180,59.09429937,13.581,13.573,20.0]
[1672950267215,59.09429937,13.581,13.572,20.0]
[1672950267423,20.0,13.582,13.572,20.0]
[1672950267633,45.12250741,13.583,13.572,20.0]
[1672950267866,20.0,13.582,13.573,55.29]
[1672950268046,20.0,13.584,13.574,20.0]
[1672950268259,220.4236,13.587,13.574,20.0]
[1672950268468,20.0,13.592,13.575,99.39816909]
[1672950268685,20.0,13.592,13.577,20.0]
[1672950268895,20.0,13.592,13.578,75.27]
[1672950269235,20.0,13.592,13.579,20.0]
[1672950269425,20.0,13.592,13.58,20.0]
[1672950272196,20.0,13.592,13.577,20.0]
[1672950272197,20.0,13.59,13.577,20.0]
[1672950273236,20.0,13.59,13.576,55.28]
[1672950273450,55.23,13.589,13.575,16.747034]
[1672950273634,20.0,13.588,13.575,16.747034]
[1672950274188,55.24,13.587,13.571,55.3]
[1672950274382,20.0,13.586,13.57,44.11816909]
[1672950274577,20.0,13.586,13.571,112.047034]
[1672950274791,20.0,13.586,13.571,75.3]
[1672950275764,20.0,13.586,13.573,20.0]
[1672950275954,20.0,13.586,13.573,55.29]
[1672950276374,20.0,13.586,13.575,20.0]
[1672950276710,20.0,13.586,13.576,20.0]
[1672950277116,234.5386,13.587,13.575,20.0]
[1672950277647,20.0,13.586,13.575,20.0]
[1672950279015,20.0,13.586,13.574,20.0]
[1672950279418,20.0,13.586,13.571,75.3]
[1672950279659,20.0,13.586,13.572,20.0]
[1672950279859,20.0,13.586,13.573,75.29]
[1672950280257,20.0,13.586,13.573,20.0]
[1672950280698,20.0,13.586,13.573,55.29]
[1672950280907,20.0,13.586,13.574,20.0]
[1672950281520,20.0,13.586,13.572,20.0]
[1672950281731,20.0,13.586,13.573,55.29]
[1672950281951,234.5386,13.587,13.575,20.0]
[1672950282461,234.5386,13.587,13.575,55.28]
[1672950282673,234.5386,13.587,13.576,20.0]
[1672950282883,234.5386,13.587,13.574,75.29]
[1672950283094,234.5386,13.587,13.574,92.037034]
[1672950284577,20.0,13.586,13.574,92.037034]
[1672950285319,234.5386,13.587,13.574,92.037034]
[1672950285959,234.5386,13.587,13.575,20.0]
[1672950286488,234.5386,13.587,13.574,136.15520309]
[1672950287219,234.5386,13.587,13.574,92.037034]
[1672950288462,20.0,13.586,13.574,92.037034]
[1672950290056,20.0,13.586,13.574,36.747034]
[1672950290374,234.5386,13.587,13.574,36.747034]
[1672950290794,20.0,13.586,13.574,36.747034]
[1672950291199,234.5386,13.587,13.574,36.747034]
[1672950291522,234.5386,13.587,13.576,20.0]
[1672950291737,234.5386,13.587,13.576,40.0]
[1672950291926,234.5386,13.587,13.577,64.11816909]
[1672950292135,55.21,13.593,13.578,20.0]
[1672950292347,117.9749,13.593,13.579,75.27]
[1672950292675,117.9749,13.593,13.58,20.0]
[1672950293088,117.9749,13.593,13.581,20.0]
[1672950295004,117.9749,13.593,13.58,20.0]
[1672950295947,20.0,13.592,13.58,20.0]
[1672950296152,75.22,13.592,13.576,20.0]
[1672950296584,75.22,13.592,13.575,36.747034]
[1672950296775,75.22,13.592,13.577,20.0]
[1672950296984,75.22,13.592,13.578,20.0]
[1672950297938,36.81,13.59,13.575,16.747034]
[1672950298143,20.0,13.588,13.576,20.0]
[1672950298354,55.24,13.587,13.576,20.0]
[1672950298577,20.0,13.586,13.576,20.0]
[1672950298785,20.0,13.586,13.571,55.3]
[1672950299320,20.0,13.586,13.571,99.41816909]
[1672950299729,20.0,13.586,13.572,20.0]
[1672950300050,20.0,13.586,13.573,20.0]
[1672950300693,20.0,13.586,13.574,16.747034]
[1672950300900,20.0,13.586,13.575,20.0]
[1672950302476,20.0,13.586,13.572,20.0]
[1672950302670,75.24,13.586,13.572,20.0]
[1672950303724,75.24,13.586,13.571,20.0]
[1672950304353,75.24,13.586,13.571,55.3]
[1672950304682,75.24,13.586,13.572,20.0]
[1672950306037,75.24,13.586,13.57,40.0]
[1672950306589,75.24,13.586,13.57,20.0]
[1672950307506,20.0,13.584,13.57,20.0]
[1672950307729,20.0,13.582,13.57,20.0]
[1672950307926,20.0,13.582,13.568,20.0]
[1672950308144,20.0,13.582,13.569,20.0]
[1672950309398,37.3572376,13.608,13.57,148.02976909]
[1672950309613,123.15,13.61,13.583,75.25]
[1672950309817,123.15,13.61,13.584,55.25]
[1672950310147,75.15,13.609,13.584,18.01068877]
[1672950310358,221.2,13.608,13.579,18.01068877]
[1672950310676,24.66,13.6,13.58,44.66]
[1672950310989,111.7288,13.599,13.582,20.0]
[1672950311303,111.7288,13.599,13.583,55.25]
[1672950311513,108.566,13.601,13.59,24.66]
[1672950311707,108.566,13.601,13.591,75.22]
[1672950312039,108.566,13.601,13.591,153.25801012]
[1672950312236,108.566,13.601,13.592,18.01068877]
[1672950312447,108.566,13.601,13.593,75.21]
[1672950312754,108.566,13.601,13.594,18.01068877]
[1672950312965,108.566,13.601,13.595,20.0]
[1672950313387,108.566,13.601,13.596,18.01068877]
[1672950314760,111.7288,13.603,13.596,18.01068877]
[1672950314970,55.13,13.612,13.596,126.99566486]
[1672950315183,75.13,13.613,13.597,55.2]
[1672950315402,75.13,13.613,13.597,18.01068877]
[1672950315809,20.0,13.611,13.597,18.01068877]
[1672950316025,55.14,13.61,13.597,18.01068877]
[1672950316352,20.0,13.609,13.591,55.22]
[1672950316552,20.0,13.609,13.592,18.01068877]
[1672950316763,20.0,13.607,13.593,55.21]
[1672950317088,20.0,13.607,13.593,73.22068877]
[1672950317306,20.0,13.607,13.593,18.01068877]
[1672950317611,20.0,13.607,13.593,73.22068877]
[1672950317825,20.0,13.607,13.593,18.01068877]
[1672950318137,20.0,13.607,13.594,20.0]
[1672950318350,116.0356,13.608,13.594,20.0]
[1672950318531,20.0,13.607,13.595,18.01068877]
[1672950318746,116.0356,13.608,13.595,55.2]
[1672950318953,116.0356,13.608,13.595,72.22454496]
[1672950319185,116.0356,13.608,13.596,16.99498793]
[1672950319403,116.0356,13.608,13.597,20.0]
[1672950319714,116.0356,13.608,13.596,117.26511163]
[1672950320106,116.0356,13.608,13.596,72.22454496]
[1672950321595,116.0356,13.608,13.597,82.0355546]
[1672950322039,116.0356,13.608,13.599,20.0]
[1672950322342,116.0356,13.608,13.598,117.26511163]
[1672950322746,116.0356,13.608,13.599,20.0]
[1672950322965,116.0356,13.608,13.599,120.2701237]
[1672950323159,108.6813,13.612,13.6,36.87]
[1672950323375,108.6813,13.612,13.602,20.0]
[1672950323580,108.6813,13.612,13.603,20.0]
[1672950324023,108.6813,13.612,13.602,20.0]
[1672950324847,108.6813,13.612,13.602,36.99498793]
[1672950325058,108.6813,13.612,13.603,20.0]
[1672950326952,108.6813,13.612,13.603,36.99498793]
[1672950327998,111.1977,13.615,13.604,45.04056667]
[1672950328208,111.1977,13.615,13.606,20.0]
[1672950328424,111.1977,13.615,13.605,72.22454496]
[1672950329276,111.1977,13.615,13.606,72.22454496]
[1672950329598,111.1977,13.615,13.606,16.99498793]
[1672950330960,111.1977,13.615,13.606,166.97812942]
[1672950331407,111.1977,13.615,13.606,72.22454496]
[1672950332943,111.1977,13.615,13.606,117.26511163]
[1672950334318,55.1,13.621,13.61,36.87]
[1672950334538,167.5359,13.628,13.611,20.0]
[1672950334724,167.5359,13.628,13.612,20.0]
[1672950334935,20.0,13.627,13.613,20.0]
[1672950335174,20.0,13.627,13.613,65.04056667]
[1672950335383,55.08,13.626,13.614,118.68190572]
[1672950335602,55.07,13.627,13.615,20.0]
[1672950335918,55.07,13.627,13.615,121.68691779]
[1672950336109,20.0,13.626,13.615,65.04056667]
[1672950336656,55.07,13.627,13.615,65.04056667]
[1672950338958,55.07,13.627,13.617,20.0]
[1672950339286,55.07,13.627,13.618,45.04056667]
[1672950339492,167.5359,13.628,13.618,45.04056667]
[1672950340104,109.4716,13.643,13.62,36.87]
[1672950340105,55.05,13.634,13.62,36.87]
[1672950340330,173.1759,13.635,13.621,20.0]
[1672950340543,173.1759,13.635,13.621,75.22955703]
[1672950340968,118.1359,13.635,13.621,147.32454496]
[1672950341371,118.1359,13.635,13.622,75.22955703]
[1672950341586,118.1359,13.635,13.623,20.0]
[1672950342436,118.1359,13.635,13.624,20.0]
[1672950342753,118.1359,13.635,13.625,20.0]
[1672950343467,118.1359,13.635,13.621,72.09498793]
[1672950343468,118.1359,13.635,13.624,20.0]
[1672950343673,118.1359,13.635,13.625,20.0]
[1672950345487,118.1359,13.635,13.62,41.12427334]
[1672950345488,173.1759,13.635,13.621,20.0]
[1672950345889,173.1759,13.635,13.621,40.1021894]
[1672950346099,20.0,13.634,13.621,40.1021894]
[1672950346536,20.0,13.632,13.621,40.1021894]
[1672950346747,36.51,13.63,13.618,374.09923002]
[1672950347074,20.0,13.628,13.611,20.0]
[1672950347283,20.0,13.628,13.612,55.13]
[1672950347496,20.0,13.628,13.613,20.0]
[1672950347800,20.0,13.628,13.615,20.0]
[1672950348020,113.3104,13.629,13.615,20.0]
[1672950348222,113.3104,13.629,13.615,40.1021894]
[1672950348627,113.3104,13.629,13.615,77.67520941]
[1672950348843,113.3104,13.629,13.617,20.0]
[1672950349061,113.3104,13.629,13.618,55.11]
[1672950349274,113.3104,13.629,13.619,20.0]
[1672950349599,113.3104,13.629,13.621,20.0]
[1672950349787,113.3104,13.629,13.622,5.0]
[1672950349999,113.3104,13.629,13.62,55.1]
[1672950351360,113.3104,13.629,13.621,20.0]
[1672950354006,113.3104,13.629,13.622,55.09]
[1672950354200,113.3104,13.629,13.623,20.0]
[1672950354825,113.3104,13.629,13.621,20.0]
[1672950357255,113.3104,13.629,13.621,40.1021894]
[1672950357463,113.3104,13.629,13.622,20.0]
[1672950357686,119.215,13.635,13.622,20.0]
[1672950358014,119.215,13.635,13.622,40.1021894]
[1672950358204,119.215,13.635,13.624,20.0]
[1672950358625,55.02,13.641,13.625,47.88903128]
[1672950358842,110.0591,13.642,13.63,36.51]
[1672950359041,110.0591,13.642,13.631,75.06]
[1672950359251,110.0591,13.642,13.631,70.93956317]